[Event "Late-Titled-Tuesday-Blitz-February-06-2024"]
[Site "Chess.com"]
[Date "2024.02.06"]
[Round "10"]
[White "Eloist"]
[Black "GlavkonVVS"]
[Result "0-1"]
[WhiteElo "2441"]
[BlackElo "2617"]
[TimeControl "180+1"]
[EndTime "15:54:27 PST"]
[Termination "GlavkonVVS won by resignation"]

1. e4 {[%clk 0:03:00.9]} 1... Nf6 {[%clk 0:02:59.9]} 2. e5 {[%clk 0:03:00.6]}
2... Nd5 {[%clk 0:03:00]} 3. d4 {[%clk 0:02:59.5]} 3... d6 {[%clk 0:03:00.2]} 4.
Nf3 {[%clk 0:02:59.7]} 4... Bg4 {[%clk 0:02:59.8]} 5. Be2 {[%clk 0:02:59.5]}
5... e6 {[%clk 0:03:00]} 6. c4 {[%clk 0:02:57.7]} 6... Nb6 {[%clk 0:02:59.7]} 7.
h3 {[%clk 0:02:58]} 7... Bh5 {[%clk 0:02:59.4]} 8. exd6 {[%clk 0:02:57.3]} 8...
cxd6 {[%clk 0:02:58.8]} 9. Nc3 {[%clk 0:02:56.8]} 9... Be7 {[%clk 0:02:59]} 10.
d5 {[%clk 0:02:54.5]} 10... e5 {[%clk 0:02:58.8]} 11. g4 {[%clk 0:02:53.7]}
11... Bg6 {[%clk 0:02:58.6]} 12. h4 {[%clk 0:02:53.9]} 12... h5 {[%clk
0:02:58.5]} 13. g5 {[%clk 0:02:51.8]} 13... N8d7 {[%clk 0:02:58.5]} 14. Be3
{[%clk 0:02:46.8]} 14... Rc8 {[%clk 0:02:58.2]} 15. Nd2 {[%clk 0:02:44.5]} 15...
Nc5 {[%clk 0:02:56]} 16. Nf1 {[%clk 0:02:20.5]} 16... Nbd7 {[%clk 0:02:49.7]}
17. Ng3 {[%clk 0:02:18.3]} 17... Qb6 {[%clk 0:02:37.6]} 18. b3 {[%clk
0:02:02.9]} 18... Qa5 {[%clk 0:02:28.2]} 19. Rc1 {[%clk 0:01:40.1]} 19... b5
{[%clk 0:02:06.7]} 20. cxb5 {[%clk 0:01:31.3]} 20... Nd3+ {[%clk 0:02:05.2]} 21.
Bxd3 {[%clk 0:01:30.4]} 21... Rxc3 {[%clk 0:02:05.3]} 22. Rxc3 {[%clk
0:01:02.3]} 22... Qxc3+ {[%clk 0:02:05.2]} 23. Ke2 {[%clk 0:01:02.2]} 23... Qb4
{[%clk 0:01:54.4]} 24. Bc4 {[%clk 0:00:51.3]} 24... Qa3 {[%clk 0:01:39.8]} 25.
Qd2 {[%clk 0:00:45.1]} 25... Nb6 {[%clk 0:01:34.7]} 26. Bxb6 {[%clk 0:00:43.4]}
26... axb6 {[%clk 0:01:34.6]} 27. Rf1 {[%clk 0:00:33]} 27... f6 {[%clk
0:01:30.5]} 28. f4 {[%clk 0:00:30.6]} 28... exf4 {[%clk 0:01:28.3]} 29. Rxf4
{[%clk 0:00:27.9]} 29... fxg5 {[%clk 0:01:28.4]} 30. Rf2 {[%clk 0:00:19.6]}
30... gxh4 {[%clk 0:01:26.8]} 31. Nf5 {[%clk 0:00:19.6]} 31... Bxf5 {[%clk
0:01:23.9]} 32. Rxf5 {[%clk 0:00:19.7]} 32... h3 {[%clk 0:01:14.3]} 33. Kd3
{[%clk 0:00:19.1]} 33... g6 {[%clk 0:01:09.5]} 34. Rf3 {[%clk 0:00:17.9]} 34...
Rf8 {[%clk 0:01:07.4]} 35. Rxf8+ {[%clk 0:00:17.1]} 35... Kxf8 {[%clk
0:01:07.2]} 36. Qf4+ {[%clk 0:00:17]} 36... Kg7 {[%clk 0:01:06.8]} 37. Qe4
{[%clk 0:00:15.7]} 37... Bf6 {[%clk 0:01:06]} 38. Qe6 {[%clk 0:00:15.8]} 38...
Qc5 {[%clk 0:01:04.5]} 39. Qd7+ {[%clk 0:00:15.5]} 39... Kh6 {[%clk 0:01:04.5]}
40. Qxh3 {[%clk 0:00:15.1]} 40... Qd4+ {[%clk 0:01:04.8]} 41. Ke2 {[%clk
0:00:14.9]} 41... Qe4+ {[%clk 0:01:04.3]} 42. Qe3+ {[%clk 0:00:14.2]} 42...
Qxe3+ {[%clk 0:01:03.7]} 43. Kxe3 {[%clk 0:00:15.1]} 43... g5 {[%clk 0:01:03.8]}
44. Kf2 {[%clk 0:00:14.7]} 44... g4 {[%clk 0:01:04.1]} 45. a4 {[%clk 0:00:13.7]}
45... Bc3 {[%clk 0:01:04.2]} 46. Bd3 {[%clk 0:00:10.2]} 46... Kg5 {[%clk
0:01:04.2]} 47. Bh7 {[%clk 0:00:10.1]} 47... h4 {[%clk 0:01:04.3]} 48. Bg8
{[%clk 0:00:10.2]} 48... h3 {[%clk 0:01:03.6]} 49. Be6 {[%clk 0:00:10]} 49...
Kf4 {[%clk 0:01:03]} 50. Bd7 {[%clk 0:00:07.8]} 50... g3+ {[%clk 0:01:01.4]} 51.
Kg1 {[%clk 0:00:07.7]} 51... Bd4+ {[%clk 0:01:00.9]} 52. Kf1 {[%clk 0:00:06.6]}
52... g2+ {[%clk 0:01:01.1]} 0-1

[Event "Late-Titled-Tuesday-Blitz-February-06-2024"]
[Site "Chess.com"]
[Date "2024.02.06"]
[Round "10"]
[White "Vicmary2005"]
[Black "GAusal"]
[Result "0-1"]
[WhiteElo "2039"]
[BlackElo "2284"]
[TimeControl "180+1"]
[EndTime "15:54:27 PST"]
[Termination "GAusal won by checkmate"]

1. e4 {[%clk 0:03:00.9]} 1... c5 {[%clk 0:02:57.3]} 2. Nf3 {[%clk 0:03:00.4]}
2... e6 {[%clk 0:02:56.7]} 3. c3 {[%clk 0:02:59.4]} 3... Nc6 {[%clk 0:02:56.6]}
4. d4 {[%clk 0:02:59]} 4... cxd4 {[%clk 0:02:56.7]} 5. cxd4 {[%clk 0:02:59.9]}
5... d5 {[%clk 0:02:56.9]} 6. e5 {[%clk 0:02:59.9]} 6... Nge7 {[%clk 0:02:56.5]}
7. a3 {[%clk 0:02:57.8]} 7... Ng6 {[%clk 0:02:56.2]} 8. Bd3 {[%clk 0:02:55.9]}
8... Be7 {[%clk 0:02:55.8]} 9. O-O {[%clk 0:02:55.4]} 9... O-O {[%clk
0:02:55.2]} 10. b4 {[%clk 0:02:54.6]} 10... a6 {[%clk 0:02:55.3]} 11. Nc3 {[%clk
0:02:53.7]} 11... Bd7 {[%clk 0:02:55.3]} 12. Be3 {[%clk 0:02:53.4]} 12... Na7
{[%clk 0:02:54.9]} 13. Rc1 {[%clk 0:02:51.3]} 13... Rc8 {[%clk 0:02:54.6]} 14.
g3 {[%clk 0:02:16.7]} 14... Qb6 {[%clk 0:02:52.7]} 15. h4 {[%clk 0:02:09.2]}
15... Bb5 {[%clk 0:02:42.9]} 16. Nxb5 {[%clk 0:02:05.2]} 16... Nxb5 {[%clk
0:02:41.6]} 17. Bxg6 {[%clk 0:01:32.4]} 17... fxg6 {[%clk 0:02:38.2]} 18. Rxc8
{[%clk 0:01:31.6]} 18... Rxc8 {[%clk 0:02:36.1]} 19. a4 {[%clk 0:01:28.6]} 19...
Na3 {[%clk 0:02:28.6]} 20. Bg5 {[%clk 0:01:24.3]} 20... Bxb4 {[%clk 0:02:24.2]}
21. h5 {[%clk 0:01:01.2]} 21... gxh5 {[%clk 0:02:20.9]} 22. Be3 {[%clk
0:01:00.6]} 22... Nc4 {[%clk 0:02:19.5]} 23. Ng5 {[%clk 0:01:00]} 23... g6
{[%clk 0:02:13.8]} 24. g4 {[%clk 0:00:45.8]} 24... h4 {[%clk 0:01:55.5]} 25. Qf3
{[%clk 0:00:26.7]} 25... Rf8 {[%clk 0:01:48]} 26. Qh3 {[%clk 0:00:25.9]} 26...
Be7 {[%clk 0:01:39]} 27. Qxh4 {[%clk 0:00:20.8]} 27... Bxg5 {[%clk 0:01:18]} 28.
Qxg5 {[%clk 0:00:21.7]} 28... Qd8 {[%clk 0:01:14.9]} 29. Qh6 {[%clk 0:00:17.5]}
29... Nxe3 {[%clk 0:01:06.8]} 30. Qxe3 {[%clk 0:00:18.4]} 30... Qh4 {[%clk
0:01:02.6]} 31. f3 {[%clk 0:00:09.7]} 31... Qg3+ {[%clk 0:01:01.8]} 32. Kh1
{[%clk 0:00:09.3]} 32... Rf4 {[%clk 0:00:52.1]} 33. a5 {[%clk 0:00:08.4]} 33...
h5 {[%clk 0:00:46.6]} 34. Rg1 {[%clk 0:00:03.8]} 34... Qh3# {[%clk 0:00:24.4]}
0-1

[Event "Late-Titled-Tuesday-Blitz-February-06-2024"]
[Site "Chess.com"]
[Date "2024.02.06"]
[Round "10"]
[White "IranianCheetah"]
[Black "HajiyevKanan"]
[Result "0-1"]
[WhiteElo "2360"]
[BlackElo "2586"]
[TimeControl "180+1"]
[EndTime "15:54:28 PST"]
[Termination "HajiyevKanan won on time"]

1. e4 {[%clk 0:03:00.9]} 1... c6 {[%clk 0:02:34.9]} 2. d4 {[%clk 0:03:00.7]}
2... d5 {[%clk 0:02:35.8]} 3. Nd2 {[%clk 0:03:00.6]} 3... a6 {[%clk 0:02:36.4]}
4. Ngf3 {[%clk 0:03:00.2]} 4... b5 {[%clk 0:02:36.6]} 5. c3 {[%clk 0:02:59.2]}
5... Bg4 {[%clk 0:02:35.3]} 6. h3 {[%clk 0:02:57.7]} 6... Bh5 {[%clk 0:02:35.6]}
7. Be2 {[%clk 0:02:56.6]} 7... e6 {[%clk 0:02:35.1]} 8. O-O {[%clk 0:02:55.6]}
8... Nf6 {[%clk 0:02:35.4]} 9. e5 {[%clk 0:02:54.7]} 9... Nfd7 {[%clk
0:02:35.7]} 10. a4 {[%clk 0:02:54.5]} 10... Be7 {[%clk 0:02:29.8]} 11. axb5
{[%clk 0:02:50.9]} 11... cxb5 {[%clk 0:02:21.7]} 12. Bxb5 {[%clk 0:02:48.2]}
12... O-O {[%clk 0:02:22.6]} 13. Bd3 {[%clk 0:02:44.3]} 13... Qb6 {[%clk
0:02:19.6]} 14. Qc2 {[%clk 0:02:43]} 14... Bg6 {[%clk 0:02:19.4]} 15. Bxg6
{[%clk 0:02:36]} 15... hxg6 {[%clk 0:02:20.3]} 16. b4 {[%clk 0:02:31.3]} 16...
Nc6 {[%clk 0:02:20.2]} 17. Nb3 {[%clk 0:02:29.4]} 17... Rfc8 {[%clk 0:02:20.2]}
18. Nc5 {[%clk 0:02:24.1]} 18... Rc7 {[%clk 0:02:20.1]} 19. Bg5 {[%clk
0:02:14.9]} 19... Bf8 {[%clk 0:02:11.5]} 20. Qd3 {[%clk 0:02:06.7]} 20... a5
{[%clk 0:02:08.5]} 21. b5 {[%clk 0:01:51.2]} 21... Ncxe5 {[%clk 0:01:54]} 22.
Nxe5 {[%clk 0:01:39.6]} 22... Nxe5 {[%clk 0:01:51.9]} 23. dxe5 {[%clk
0:00:30.3]} 23... Bxc5 {[%clk 0:01:51.1]} 24. Ra4 {[%clk 0:00:25.2]} 24... Rb8
{[%clk 0:01:47.4]} 25. Rfa1 {[%clk 0:00:11]} 25... Bxf2+ {[%clk 0:01:45.7]} 26.
Kf1 {[%clk 0:00:11.6]} 26... Bg1 {[%clk 0:01:37.4]} 27. Qe2 {[%clk 0:00:10.4]}
27... Rxc3 {[%clk 0:01:20]} 28. Rxa5 {[%clk 0:00:10.4]} 28... Bd4 {[%clk
0:01:14.8]} 29. Ra6 {[%clk 0:00:06.8]} 29... Qxb5 {[%clk 0:01:07]} 30. Qxb5
{[%clk 0:00:06.4]} 30... Rxb5 {[%clk 0:01:07.9]} 31. Ra8+ {[%clk 0:00:06.2]}
31... Kh7 {[%clk 0:01:08.3]} 32. Rf8 {[%clk 0:00:06.3]} 32... Rc8 {[%clk
0:00:51.8]} 33. Rxc8 {[%clk 0:00:02.7]} 33... Bxa1 {[%clk 0:00:52.1]} 34. Rf8
{[%clk 0:00:02.6]} 34... Rb7 {[%clk 0:00:47.6]} 35. Bf4 {[%clk 0:00:02.9]} 35...
g5 {[%clk 0:00:40.2]} 36. Bh2 {[%clk 0:00:02.2]} 36... Kg6 {[%clk 0:00:39.9]}
37. g4 {[%clk 0:00:02.5]} 37... Rb1+ {[%clk 0:00:37.9]} 38. Kg2 {[%clk
0:00:02.7]} 38... Rb2+ {[%clk 0:00:38.8]} 39. Kh1 {[%clk 0:00:02.5]} 39... Re2
{[%clk 0:00:38.3]} 40. Ra8 {[%clk 0:00:01.2]} 40... Bxe5 {[%clk 0:00:38.5]} 0-1

[Event "Late-Titled-Tuesday-Blitz-February-06-2024"]
[Site "Chess.com"]
[Date "2024.02.06"]
[Round "10"]
[White "Rutricks"]
[Black "sotochess"]
[Result "0-1"]
[WhiteElo "2720"]
[BlackElo "2579"]
[TimeControl "180+1"]
[EndTime "15:54:29 PST"]
[Termination "sotochess won by resignation"]

1. c4 {[%clk 0:03:00.9]} 1... Nf6 {[%clk 0:02:58.7]} 2. g3 {[%clk 0:03:00.5]}
2... g6 {[%clk 0:02:58.2]} 3. Bg2 {[%clk 0:03:00.6]} 3... Bg7 {[%clk 0:02:59.1]}
4. Nf3 {[%clk 0:03:01]} 4... O-O {[%clk 0:02:59.3]} 5. O-O {[%clk 0:03:00.4]}
5... d6 {[%clk 0:03:00.2]} 6. d4 {[%clk 0:03:00.9]} 6... Bf5 {[%clk 0:02:57.3]}
7. Qb3 {[%clk 0:02:59.3]} 7... Bc8 {[%clk 0:02:52.3]} 8. Nc3 {[%clk 0:02:58.9]}
8... Nc6 {[%clk 0:02:52.5]} 9. e4 {[%clk 0:02:56.1]} 9... Nd7 {[%clk 0:02:51.3]}
10. Be3 {[%clk 0:02:55.4]} 10... Na5 {[%clk 0:02:50.8]} 11. Qa4 {[%clk
0:02:54.4]} 11... c5 {[%clk 0:02:49.8]} 12. Rad1 {[%clk 0:02:49.6]} 12... b6
{[%clk 0:02:40]} 13. e5 {[%clk 0:02:41.2]} 13... cxd4 {[%clk 0:02:22.1]} 14.
Bxd4 {[%clk 0:02:39.4]} 14... Nc5 {[%clk 0:02:15.4]} 15. Bxc5 {[%clk 0:02:24]}
15... bxc5 {[%clk 0:02:05.1]} 16. exd6 {[%clk 0:02:24.1]} 16... exd6 {[%clk
0:02:04.4]} 17. Nb5 {[%clk 0:02:24.3]} 17... Bd7 {[%clk 0:01:55.5]} 18. Qc2
{[%clk 0:02:06.7]} 18... Bxb5 {[%clk 0:01:49.4]} 19. cxb5 {[%clk 0:02:07.6]}
19... Qb6 {[%clk 0:01:48.8]} 20. Ng5 {[%clk 0:01:50.1]} 20... Rab8 {[%clk
0:01:42.9]} 21. b3 {[%clk 0:01:39.1]} 21... Qxb5 {[%clk 0:01:41.2]} 22. Rxd6
{[%clk 0:01:37.1]} 22... c4 {[%clk 0:01:40.8]} 23. Rd5 {[%clk 0:01:31.5]} 23...
Qb4 {[%clk 0:01:37.3]} 24. bxc4 {[%clk 0:01:24.1]} 24... Nxc4 {[%clk 0:01:37.1]}
25. Rd7 {[%clk 0:01:20.2]} 25... a5 {[%clk 0:01:27.5]} 26. a3 {[%clk 0:00:39.1]}
26... Nxa3 {[%clk 0:01:26.1]} 27. Qa2 {[%clk 0:00:39.7]} 27... Qb3 {[%clk
0:01:07.7]} 28. Qxb3 {[%clk 0:00:37.5]} 28... Rxb3 {[%clk 0:01:07.9]} 29. Bd5
{[%clk 0:00:37.7]} 29... Rb5 {[%clk 0:01:04.5]} 30. Bxf7+ {[%clk 0:00:36.3]}
30... Kh8 {[%clk 0:00:54.5]} 31. Ne6 {[%clk 0:00:36.3]} 31... Rfb8 {[%clk
0:00:28.2]} 32. Nxg7 {[%clk 0:00:15.9]} 32... R5b7 {[%clk 0:00:27.5]} 33. Rfd1
{[%clk 0:00:16.5]} 33... Rxd7 {[%clk 0:00:25.1]} 34. Rxd7 {[%clk 0:00:16.2]}
34... Kxg7 {[%clk 0:00:24.7]} 35. Ra7 {[%clk 0:00:14.9]} 35... Nb5 {[%clk
0:00:23.2]} 36. Bc4+ {[%clk 0:00:14.9]} 36... Nxa7 {[%clk 0:00:22.9]} 0-1

[Event "Late-Titled-Tuesday-Blitz-February-06-2024"]
[Site "Chess.com"]
[Date "2024.02.06"]
[Round "10"]
[White "Teidi96"]
[Black "HaryKane"]
[Result "0-1"]
[WhiteElo "2364"]
[BlackElo "2563"]
[TimeControl "180+1"]
[EndTime "15:54:31 PST"]
[Termination "HaryKane won on time"]

1. e4 {[%clk 0:03:00.9]} 1... g6 {[%clk 0:02:59.7]} 2. d4 {[%clk 0:03:00.4]}
2... Bg7 {[%clk 0:03:00.2]} 3. Nc3 {[%clk 0:03:01]} 3... d6 {[%clk 0:02:59.3]}
4. Be3 {[%clk 0:03:01.6]} 4... Nf6 {[%clk 0:02:58.7]} 5. f3 {[%clk 0:03:00.5]}
5... O-O {[%clk 0:02:55.5]} 6. Qd2 {[%clk 0:03:01.1]} 6... Re8 {[%clk
0:02:55.2]} 7. Bh6 {[%clk 0:03:01]} 7... Bh8 {[%clk 0:02:55.2]} 8. h4 {[%clk
0:03:00.2]} 8... c5 {[%clk 0:02:53]} 9. Nge2 {[%clk 0:02:58.7]} 9... cxd4 {[%clk
0:02:51.7]} 10. Nxd4 {[%clk 0:02:59.6]} 10... Nc6 {[%clk 0:02:50.7]} 11. Nb3
{[%clk 0:02:58.4]} 11... a5 {[%clk 0:02:45.1]} 12. h5 {[%clk 0:02:58.5]} 12...
a4 {[%clk 0:02:43.5]} 13. Nc1 {[%clk 0:02:55.5]} 13... a3 {[%clk 0:02:38.3]} 14.
b3 {[%clk 0:02:52.3]} 14... d5 {[%clk 0:02:26.4]} 15. hxg6 {[%clk 0:02:51]}
15... fxg6 {[%clk 0:02:24.4]} 16. exd5 {[%clk 0:02:45.2]} 16... Nb4 {[%clk
0:02:22.8]} 17. Bc4 {[%clk 0:02:33.3]} 17... Bf5 {[%clk 0:02:21.4]} 18. d6+
{[%clk 0:02:17.6]} 18... e6 {[%clk 0:02:15.4]} 19. Nd3 {[%clk 0:02:06.6]} 19...
Rc8 {[%clk 0:02:02.6]} 20. Nxb4 {[%clk 0:02:04.3]} 20... Qa5 {[%clk 0:01:40.3]}
21. Nd3 {[%clk 0:01:40.2]} 21... Nd5 {[%clk 0:01:36.3]} 22. Nxd5 {[%clk
0:01:34]} 22... exd5+ {[%clk 0:01:20.6]} 23. Kd1 {[%clk 0:01:34.2]} 23... Qxd2+
{[%clk 0:01:17.8]} 24. Kxd2 {[%clk 0:01:30]} 24... dxc4 {[%clk 0:01:18]} 25.
bxc4 {[%clk 0:01:08.6]} 25... Rxc4 {[%clk 0:01:13.4]} 26. Rae1 {[%clk
0:01:03.8]} 26... Rd8 {[%clk 0:01:11.7]} 27. Re7 {[%clk 0:00:55.6]} 27... Bc3+
{[%clk 0:01:04.5]} 28. Kd1 {[%clk 0:00:44.5]} 28... Rxd6 {[%clk 0:01:02.7]} 29.
Bd2 {[%clk 0:00:15.7]} 29... Bf6 {[%clk 0:01:00.6]} 30. Rxb7 {[%clk 0:00:13]}
30... Bxd3 {[%clk 0:00:57.6]} 31. cxd3 {[%clk 0:00:13.5]} 31... Rxd3 {[%clk
0:00:58.5]} 32. Ke2 {[%clk 0:00:09.3]} 32... Rd8 {[%clk 0:00:56.8]} 33. Rhxh7
{[%clk 0:00:06.9]} 33... Rc2 {[%clk 0:00:56.1]} 34. Rhd7 {[%clk 0:00:07.2]}
34... Rxd7 {[%clk 0:00:48.8]} 35. Rxd7 {[%clk 0:00:08.1]} 35... Rxa2 {[%clk
0:00:48.6]} 36. Kd1 {[%clk 0:00:06.3]} 36... Rb2 {[%clk 0:00:38.3]} 37. Ra7
{[%clk 0:00:05.5]} 37... a2 {[%clk 0:00:38.7]} 38. Ke2 {[%clk 0:00:02.7]} 38...
Bc3 {[%clk 0:00:36.2]} 39. Kd3 {[%clk 0:00:02.9]} 39... Bxd2 {[%clk 0:00:35.6]}
40. g4 {[%clk 0:00:02.3]} 40... Bg5 {[%clk 0:00:30.7]} 0-1

[Event "Late-Titled-Tuesday-Blitz-February-06-2024"]
[Site "Chess.com"]
[Date "2024.02.06"]
[Round "10"]
[White "stepanosinovsky"]
[Black "edgarhay012"]
[Result "0-1"]
[WhiteElo "2394"]
[BlackElo "2593"]
[TimeControl "180+1"]
[EndTime "15:54:33 PST"]
[Termination "edgarhay012 won on time"]

1. e4 {[%clk 0:03:00.9]} 1... b6 {[%clk 0:02:58.9]} 2. d4 {[%clk 0:03:00.2]}
2... Bb7 {[%clk 0:02:59.2]} 3. Bd3 {[%clk 0:03:00.9]} 3... e6 {[%clk 0:02:59.4]}
4. Nf3 {[%clk 0:02:59.4]} 4... c5 {[%clk 0:02:59.9]} 5. O-O {[%clk 0:02:58.9]}
5... Nf6 {[%clk 0:02:56.4]} 6. Nc3 {[%clk 0:02:53.5]} 6... cxd4 {[%clk
0:02:48.6]} 7. Nxd4 {[%clk 0:02:53.2]} 7... Nc6 {[%clk 0:02:49.2]} 8. Nxc6
{[%clk 0:02:41.8]} 8... Bxc6 {[%clk 0:02:50.1]} 9. e5 {[%clk 0:02:40.5]} 9...
Nd5 {[%clk 0:02:49.6]} 10. Ne4 {[%clk 0:02:38.7]} 10... d6 {[%clk 0:02:31.1]}
11. exd6 {[%clk 0:02:23.8]} 11... Bxd6 {[%clk 0:02:18.6]} 12. Qg4 {[%clk
0:02:07.1]} 12... O-O {[%clk 0:02:06.5]} 13. Bh6 {[%clk 0:02:04.3]} 13... Be5
{[%clk 0:02:06.8]} 14. Rad1 {[%clk 0:01:17]} 14... f5 {[%clk 0:02:04.4]} 15. Qh3
{[%clk 0:01:09.6]} 15... fxe4 {[%clk 0:01:55.8]} 16. Qxe6+ {[%clk 0:01:06.3]}
16... Kh8 {[%clk 0:01:56]} 17. Qxe5 {[%clk 0:01:05.6]} 17... Qf6 {[%clk
0:01:55.5]} 18. Bxg7+ {[%clk 0:00:31.1]} 18... Qxg7 {[%clk 0:01:52.6]} 19. Qxg7+
{[%clk 0:00:30.7]} 19... Kxg7 {[%clk 0:01:52.9]} 20. Bxe4 {[%clk 0:00:31.2]}
20... Rad8 {[%clk 0:01:52.3]} 21. c3 {[%clk 0:00:17.3]} 21... Ne7 {[%clk
0:01:13.2]} 22. Bxc6 {[%clk 0:00:16.2]} 22... Nxc6 {[%clk 0:01:14.1]} 23. g3
{[%clk 0:00:12.9]} 23... Ne5 {[%clk 0:01:12.8]} 24. f4 {[%clk 0:00:12]} 24...
Nc4 {[%clk 0:01:12.7]} 25. Rxd8 {[%clk 0:00:10.9]} 25... Rxd8 {[%clk 0:01:13.6]}
26. Rf2 {[%clk 0:00:10.1]} 26... Rd1+ {[%clk 0:01:13.7]} 27. Kg2 {[%clk
0:00:10]} 27... Rb1 {[%clk 0:01:14.4]} 28. b3 {[%clk 0:00:08.8]} 28... Nd6
{[%clk 0:01:11.6]} 29. Re2 {[%clk 0:00:06.5]} 29... Kf6 {[%clk 0:01:10.5]} 30.
g4 {[%clk 0:00:06.4]} 30... Rc1 {[%clk 0:01:10.7]} 31. c4 {[%clk 0:00:06.1]}
31... b5 {[%clk 0:01:07.6]} 32. cxb5 {[%clk 0:00:05.6]} 32... Nxb5 {[%clk
0:01:08.5]} 33. g5+ {[%clk 0:00:04.4]} 33... Kf7 {[%clk 0:01:09]} 34. h4 {[%clk
0:00:03.8]} 34... Nd4 {[%clk 0:01:09]} 35. Rd2 {[%clk 0:00:02.9]} 35... Nf5
{[%clk 0:01:08.1]} 36. h5 {[%clk 0:00:02.4]} 36... Ke6 {[%clk 0:01:03.8]} 37.
Re2+ {[%clk 0:00:01.9]} 37... Kf7 {[%clk 0:00:56.1]} 38. Re5 {[%clk 0:00:01.6]}
38... Rc2+ {[%clk 0:00:56.7]} 39. Kf3 {[%clk 0:00:01.8]} 39... Nd4+ {[%clk
0:00:54.6]} 40. Ke4 {[%clk 0:00:02.3]} 40... Nc6 {[%clk 0:00:55.2]} 41. Rb5
{[%clk 0:00:02.1]} 41... Re2+ {[%clk 0:00:44.3]} 42. Kf5 {[%clk 0:00:01.9]}
42... Nd4+ {[%clk 0:00:44.3]} 43. Kg4 {[%clk 0:00:01.5]} 43... Nxb5 {[%clk
0:00:45.2]} 0-1

[Event "Late-Titled-Tuesday-Blitz-February-06-2024"]
[Site "Chess.com"]
[Date "2024.02.06"]
[Round "10"]
[White "McCarthyStone"]
[Black "giovannibrandao7"]
[Result "0-1"]
[WhiteElo "2359"]
[BlackElo "2238"]
[TimeControl "180+1"]
[EndTime "15:54:36 PST"]
[Termination "giovannibrandao7 won by checkmate"]

1. Nf3 {[%clk 0:02:57.9]} 1... c5 {[%clk 0:03:00.5]} 2. e4 {[%clk 0:02:57.1]}
2... Nc6 {[%clk 0:03:01.1]} 3. Bb5 {[%clk 0:02:54.7]} 3... g6 {[%clk 0:02:59.6]}
4. O-O {[%clk 0:02:55.1]} 4... Bg7 {[%clk 0:02:59.5]} 5. Re1 {[%clk 0:02:55.7]}
5... e5 {[%clk 0:02:59.3]} 6. c3 {[%clk 0:02:53.4]} 6... Nge7 {[%clk 0:02:59.7]}
7. a3 {[%clk 0:02:53.6]} 7... O-O {[%clk 0:02:58.7]} 8. b4 {[%clk 0:02:54.2]}
8... d6 {[%clk 0:02:54.7]} 9. Bb2 {[%clk 0:02:52.6]} 9... a6 {[%clk 0:02:49.8]}
10. Bc4 {[%clk 0:02:44.7]} 10... b5 {[%clk 0:02:48]} 11. Ba2 {[%clk 0:02:36.6]}
11... Bg4 {[%clk 0:02:15.7]} 12. h3 {[%clk 0:02:34]} 12... Bxf3 {[%clk
0:02:15.4]} 13. Qxf3 {[%clk 0:02:34.9]} 13... Kh8 {[%clk 0:02:08.1]} 14. d3
{[%clk 0:02:33.8]} 14... f5 {[%clk 0:02:07.2]} 15. Nd2 {[%clk 0:02:31.5]} 15...
f4 {[%clk 0:02:01.3]} 16. Rad1 {[%clk 0:02:19.7]} 16... a5 {[%clk 0:01:48]} 17.
bxc5 {[%clk 0:02:03.5]} 17... dxc5 {[%clk 0:01:48]} 18. Nb3 {[%clk 0:01:58.1]}
18... Qb6 {[%clk 0:01:47.3]} 19. d4 {[%clk 0:01:50.6]} 19... exd4 {[%clk
0:01:43.2]} 20. cxd4 {[%clk 0:01:51.1]} 20... cxd4 {[%clk 0:01:31.6]} 21. e5
{[%clk 0:01:39]} 21... Rad8 {[%clk 0:01:15.6]} 22. Qe4 {[%clk 0:01:22.2]} 22...
Bxe5 {[%clk 0:00:48.5]} 23. Nxd4 {[%clk 0:01:11.9]} 23... Bxd4 {[%clk
0:00:26.7]} 24. Rxd4 {[%clk 0:01:09.9]} 24... Rxd4 {[%clk 0:00:15.3]} 25. Qd5
{[%clk 0:00:26.5]} 25... Nxd5 {[%clk 0:00:12.3]} 26. Bxd5 {[%clk 0:00:24.4]}
26... Rf6 {[%clk 0:00:07.4]} 27. Ba2 {[%clk 0:00:20.2]} 27... Kg7 {[%clk
0:00:07]} 28. h4 {[%clk 0:00:18.6]} 28... Kh6 {[%clk 0:00:07.1]} 29. Bc1 {[%clk
0:00:18.9]} 29... Rc4 {[%clk 0:00:05.2]} 30. Bd2 {[%clk 0:00:18.8]} 30... Rc2
{[%clk 0:00:05.2]} 31. g4 {[%clk 0:00:15.5]} 31... Rxd2 {[%clk 0:00:04]} 32. g5+
{[%clk 0:00:16.4]} 32... Kg7 {[%clk 0:00:04.2]} 33. Be6 {[%clk 0:00:17.2]} 33...
Rxe6 {[%clk 0:00:03.6]} 34. Rxe6 {[%clk 0:00:18.1]} 34... Qxf2+ {[%clk
0:00:04.1]} 35. Kh1 {[%clk 0:00:18.2]} 35... Qg2# {[%clk 0:00:05]} 0-1